[Event "Titled Tuesday Blitz February 07 Early 2023"]
[White "Marn, Jan"]
[Black "Kopczynski, Michal"]
[WhiteFideId "14619245"]
[BlackFideId "1124200"]
[WhiteElo "2345"]
[BlackElo "2225"]
[Result "0-1"]
[Round "09"]
[TimeControl "180+2"]
[Date "2023.02.07"]
[WhiteClock "0:00:47"]
[BlackClock "0:01:10"]

1. d4 {[%clk 0:02:58]}  Nf6 {[%clk 0:03:00]} 2. Nf3 {[%clk 0:02:55]}  g6 {[%clk 0:03:00]} 3. Nbd2 {[%clk 0:02:55]}  Bg7 {[%clk 0:03:01]} 4. e4 {[%clk 0:02:55]}  d6 {[%clk 0:03:01]} 5. Bb5+ {[%clk 0:02:54]}  c6 {[%clk 0:03:01]} 6. Bd3 {[%clk 0:02:53]}  O-O {[%clk 0:03:01]} 7. O-O {[%clk 0:02:52]}  Nfd7 {[%clk 0:03:02]} 8. Re1 {[%clk 0:02:51]}  e5 {[%clk 0:03:02]} 9. dxe5 {[%clk 0:02:48]}  dxe5 {[%clk 0:03:01]} 10. b4 {[%clk 0:02:48]}  h6 {[%clk 0:02:55]} 11. Bb2 {[%clk 0:02:42]}  Qe7 {[%clk 0:02:42]} 12. Nc4 {[%clk 0:02:40]}  b5 {[%clk 0:02:39]} 13. Ne3 {[%clk 0:02:36]}  Nb6 {[%clk 0:02:38]} 14. a3 {[%clk 0:02:24]}  Na4 {[%clk 0:02:35]} 15. Qc1 {[%clk 0:02:21]}  Nxb2 {[%clk 0:02:31]} 16. Qxb2 {[%clk 0:02:21]}  Nd7 {[%clk 0:02:31]} 17. c4 {[%clk 0:02:21]}  a6 {[%clk 0:02:24]} 18. c5 {[%clk 0:02:18]}  f5 {[%clk 0:02:22]} 19. exf5 {[%clk 0:01:45]}  e4 {[%clk 0:02:23]} 20. Qa2+ {[%clk 0:01:45]}  Kh8 {[%clk 0:02:22]} 21. fxg6 {[%clk 0:01:38]}  exf3 {[%clk 0:02:05]} 22. Nf5 {[%clk 0:01:27]}  Qg5 {[%clk 0:02:05]} 23. g3 {[%clk 0:01:17]}  Rxf5 {[%clk 0:01:19]} 24. Bxf5 {[%clk 0:01:14]}  Qxf5 {[%clk 0:01:18]} 25. Re8+ {[%clk 0:00:54]}  Nf8 {[%clk 0:01:17]} 26. Kh1 {[%clk 0:00:47]}  Be6 {[%clk 0:01:10]} 0-1


[Site "https://www.chess.com"]

[Event "Titled Tuesday Blitz February 07 Early 2023"]
[White "Ilinca Ilinca, Felix Antonio"]
[Black "Kumala, Aleksander"]
[WhiteFideId "54764998"]
[BlackFideId "1141880"]
[WhiteElo "2266"]
[BlackElo "2165"]
[Result "1-0"]
[Round "09"]
[TimeControl "180+2"]
[Date "2023.02.07"]
[WhiteClock "0:00:39"]
[BlackClock "0:00:04"]

1. e4 {[%clk 0:03:00]}  e5 {[%clk 0:02:59]} 2. Nc3 {[%clk 0:02:58]}  Nf6 {[%clk 0:02:59]} 3. Bc4 {[%clk 0:02:57]}  Nxe4 {[%clk 0:02:50]} 4. Qh5 {[%clk 0:02:55]}  Nd6 {[%clk 0:02:44]} 5. Bb3 {[%clk 0:02:54]}  Nc6 {[%clk 0:02:42]} 6. Nb5 {[%clk 0:02:52]}  g6 {[%clk 0:02:35]} 7. Qf3 {[%clk 0:02:52]}  f5 {[%clk 0:02:21]} 8. Qd5 {[%clk 0:02:47]}  Qf6 {[%clk 0:02:17]} 9. Nxc7+ {[%clk 0:02:34]}  Kd8 {[%clk 0:02:18]} 10. Nxa8 {[%clk 0:02:34]}  b5 {[%clk 0:02:18]} 11. d3 {[%clk 0:02:22]}  Bb7 {[%clk 0:02:18]} 12. Nf3 {[%clk 0:02:18]}  Nd4 {[%clk 0:02:09]} 13. Qc5 {[%clk 0:02:11]}  Nxf3+ {[%clk 0:02:02]} 14. gxf3 {[%clk 0:02:10]}  Bxa8 {[%clk 0:01:58]} 15. Bd5 {[%clk 0:01:57]}  Bxd5 {[%clk 0:01:14]} 16. Qxd5 {[%clk 0:01:52]}  g5 {[%clk 0:01:05]} 17. Bd2 {[%clk 0:01:42]}  Bg7 {[%clk 0:01:01]} 18. a4 {[%clk 0:01:26]}  Ke7 {[%clk 0:00:47]} 19. axb5 {[%clk 0:01:22]}  Rc8 {[%clk 0:00:45]} 20. c4 {[%clk 0:01:15]}  g4 {[%clk 0:00:39]} 21. Bb4 {[%clk 0:01:09]}  e4 {[%clk 0:00:30]} 22. Ra6 {[%clk 0:01:02]}  exd3 {[%clk 0:00:20]} 23. Rxd6 {[%clk 0:00:58]}  d2+ {[%clk 0:00:19]} 24. Kd1 {[%clk 0:00:51]}  Qxb2 {[%clk 0:00:19]} 25. Rxd7+ {[%clk 0:00:49]}  Kf6 {[%clk 0:00:18]} 26. Qf7+ {[%clk 0:00:49]}  Kg5 {[%clk 0:00:18]} 27. Qxg7+ {[%clk 0:00:49]}  Qxg7 {[%clk 0:00:18]} 28. Rxg7+ {[%clk 0:00:50]}  Kf4 {[%clk 0:00:19]} 29. fxg4 {[%clk 0:00:48]}  Rxc4 {[%clk 0:00:19]} 30. Bxd2+ {[%clk 0:00:49]}  Kf3 {[%clk 0:00:19]} 31. gxf5 {[%clk 0:00:47]}  a6 {[%clk 0:00:15]} 32. bxa6 {[%clk 0:00:45]}  Ra4 {[%clk 0:00:16]} 33. a7 {[%clk 0:00:45]}  h5 {[%clk 0:00:16]} 34. Kc2 {[%clk 0:00:43]}  h4 {[%clk 0:00:16]} 35. Kb2 {[%clk 0:00:43]}  h3 {[%clk 0:00:15]} 36. Ra1 {[%clk 0:00:43]}  Re4 {[%clk 0:00:13]} 37. a8=Q {[%clk 0:00:42]}  Kxf2 {[%clk 0:00:13]} 38. Rg2+ {[%clk 0:00:38]}  hxg2 {[%clk 0:00:04]} 39. Qxe4 {[%clk 0:00:38]}  g1=N {[%clk 0:00:04]} 40. Qe3+ {[%clk 0:00:38]}  Kg2 {[%clk 0:00:04]} 41. Rxg1+ {[%clk 0:00:39]}  Kxh2 {[%clk 0:00:04]} 42. Qg3# {[%clk 0:00:39]} 1-0


[Site "https://www.chess.com"]

[Event "Titled Tuesday Blitz February 07 Early 2023"]
[White "Bowden, Karl"]
[Black "Belov, Alexei"]
[WhiteFideId "400548"]
[BlackFideId "4128206"]
[WhiteElo "2348"]
[BlackElo "2421"]
[Result "0-1"]
[Round "09"]
[TimeControl "180+2"]
[Date "2023.02.07"]
[WhiteClock "0:00:01"]
[BlackClock "0:00:30"]

1. e4 {[%clk 0:02:59]}  e6 {[%clk 0:03:00]} 2. d3 {[%clk 0:03:00]}  d5 {[%clk 0:03:00]} 3. Qe2 {[%clk 0:03:00]}  Nf6 {[%clk 0:02:59]} 4. e5 {[%clk 0:03:00]}  Nfd7 {[%clk 0:02:59]} 5. Nf3 {[%clk 0:03:01]}  c5 {[%clk 0:02:58]} 6. g3 {[%clk 0:03:01]}  Nc6 {[%clk 0:02:57]} 7. Bg2 {[%clk 0:03:02]}  Qc7 {[%clk 0:02:50]} 8. Bf4 {[%clk 0:03:00]}  h6 {[%clk 0:02:49]} 9. h4 {[%clk 0:02:59]}  b5 {[%clk 0:02:43]} 10. c4 {[%clk 0:02:47]}  bxc4 {[%clk 0:02:32]} 11. dxc4 {[%clk 0:02:47]}  Ba6 {[%clk 0:02:24]} 12. Na3 {[%clk 0:02:24]}  Nb6 {[%clk 0:02:11]} 13. b3 {[%clk 0:02:20]}  Nd4 {[%clk 0:01:51]} 14. Nxd4 {[%clk 0:01:53]}  cxd4 {[%clk 0:01:51]} 15. Nc2 {[%clk 0:01:40]}  Bc5 {[%clk 0:01:42]} 16. O-O {[%clk 0:00:53]}  Rd8 {[%clk 0:01:39]} 17. a4 {[%clk 0:00:33]}  dxc4 {[%clk 0:01:35]} 18. Na3 {[%clk 0:00:30]}  Bxa3 {[%clk 0:01:17]} 19. Rxa3 {[%clk 0:00:29]}  Nd5 {[%clk 0:01:09]} 20. bxc4 {[%clk 0:00:19]}  Bxc4 {[%clk 0:01:06]} 21. Qg4 {[%clk 0:00:19]}  Nxf4 {[%clk 0:01:00]} 22. gxf4 {[%clk 0:00:18]}  O-O {[%clk 0:00:53]} 23. Rc1 {[%clk 0:00:17]}  d3 {[%clk 0:00:51]} 24. Rd1 {[%clk 0:00:15]}  d2 {[%clk 0:00:45]} 25. Rc3 {[%clk 0:00:14]}  Rd4 {[%clk 0:00:42]} 26. Rg3 {[%clk 0:00:10]}  f5 {[%clk 0:00:38]} 27. exf6 {[%clk 0:00:10]}  Rxf6 {[%clk 0:00:38]} 28. Qf3 {[%clk 0:00:03]}  Bd5 {[%clk 0:00:34]} 29. Qe3 {[%clk 0:00:01]}  Qc1 {[%clk 0:00:30]} 0-1


[Site "https://www.chess.com"]

[Event "Titled Tuesday Blitz February 07 Early 2023"]
[White "Decuigniere, Tom"]
[Black "Dudzinski, Pawel"]
[WhiteFideId "26093820"]
[BlackFideId "1117890"]
[WhiteElo "2382"]
[BlackElo "2186"]
[Result "0-1"]
[Round "09"]
[TimeControl "180+2"]
[Date "2023.02.07"]
[WhiteClock "0:00:05"]
[BlackClock "0:00:07"]

1. c4 {[%clk 0:03:00]}  e5 {[%clk 0:02:44]} 2. Nc3 {[%clk 0:03:01]}  c5 {[%clk 0:02:43]} 3. g3 {[%clk 0:03:01]}  Nc6 {[%clk 0:02:43]} 4. Bg2 {[%clk 0:03:01]}  g6 {[%clk 0:02:44]} 5. e3 {[%clk 0:03:01]}  Bg7 {[%clk 0:02:44]} 6. Nge2 {[%clk 0:03:02]}  Nge7 {[%clk 0:02:45]} 7. O-O {[%clk 0:03:03]}  Rb8 {[%clk 0:02:45]} 8. a3 {[%clk 0:03:02]}  a6 {[%clk 0:02:45]} 9. Rb1 {[%clk 0:03:00]}  b5 {[%clk 0:02:45]} 10. cxb5 {[%clk 0:03:01]}  axb5 {[%clk 0:02:46]} 11. b4 {[%clk 0:03:02]}  cxb4 {[%clk 0:02:46]} 12. axb4 {[%clk 0:03:03]}  d5 {[%clk 0:02:47]} 13. Qb3 {[%clk 0:02:56]}  Be6 {[%clk 0:02:47]} 14. d4 {[%clk 0:02:56]}  exd4 {[%clk 0:02:47]} 15. exd4 {[%clk 0:02:54]}  O-O {[%clk 0:02:46]} 16. Rd1 {[%clk 0:02:47]}  Nf5 {[%clk 0:02:46]} 17. Bxd5 {[%clk 0:02:37]}  Ncxd4 {[%clk 0:02:41]} 18. Nxd4 {[%clk 0:02:34]}  Bxd5 {[%clk 0:01:44]} 19. Qxd5 {[%clk 0:02:29]}  Nxd4 {[%clk 0:01:28]} 20. Be3 {[%clk 0:02:18]}  Qxd5 {[%clk 0:01:02]} 21. Nxd5 {[%clk 0:02:19]}  Ne6 {[%clk 0:01:02]} 22. Rbc1 {[%clk 0:01:56]}  Rfd8 {[%clk 0:00:56]} 23. Ba7 {[%clk 0:01:39]}  Ra8 {[%clk 0:00:55]} 24. Bb6 {[%clk 0:01:38]}  Rdb8 {[%clk 0:00:48]} 25. Be3 {[%clk 0:01:28]}  Rb7 {[%clk 0:00:47]} 26. Rc6 {[%clk 0:01:23]}  Rd8 {[%clk 0:00:41]} 27. Rxe6 {[%clk 0:01:11]}  fxe6 {[%clk 0:00:38]} 28. Ne7+ {[%clk 0:01:12]}  Kf7 {[%clk 0:00:32]} 29. Rxd8 {[%clk 0:01:13]}  Kxe7 {[%clk 0:00:33]} 30. Rc8 {[%clk 0:01:11]}  Kd6 {[%clk 0:00:25]} 31. Bc5+ {[%clk 0:01:07]}  Kd5 {[%clk 0:00:25]} 32. Kf1 {[%clk 0:01:03]}  Kc4 {[%clk 0:00:23]} 33. Ke2 {[%clk 0:00:27]}  Bc3 {[%clk 0:00:24]} 34. Bd6+ {[%clk 0:00:26]}  Kb3 {[%clk 0:00:20]} 35. Re8 {[%clk 0:00:22]}  Bxb4 {[%clk 0:00:18]} 36. Bxb4 {[%clk 0:00:22]}  Kxb4 {[%clk 0:00:19]} 37. Rxe6 {[%clk 0:00:22]}  Kc3 {[%clk 0:00:18]} 38. Re3+ {[%clk 0:00:21]}  Kc2 {[%clk 0:00:17]} 39. Rd3 {[%clk 0:00:18]}  b4 {[%clk 0:00:17]} 40. Rd2+ {[%clk 0:00:18]}  Kc3 {[%clk 0:00:17]} 41. Rd3+ {[%clk 0:00:18]}  Kc4 {[%clk 0:00:18]} 42. Rd1 {[%clk 0:00:18]}  b3 {[%clk 0:00:17]} 43. Rb1 {[%clk 0:00:17]}  Kc3 {[%clk 0:00:16]} 44. Kd1 {[%clk 0:00:16]}  Rd7+ {[%clk 0:00:16]} 45. Kc1 {[%clk 0:00:16]}  Re7 {[%clk 0:00:13]} 46. Kd1 {[%clk 0:00:16]}  b2 {[%clk 0:00:12]} 47. h4 {[%clk 0:00:14]}  h5 {[%clk 0:00:12]} 48. f3 {[%clk 0:00:13]}  Re3 {[%clk 0:00:12]} 49. g4 {[%clk 0:00:13]}  hxg4 {[%clk 0:00:06]} 50. fxg4 {[%clk 0:00:13]}  Rh3 {[%clk 0:00:07]} 51. Ke2 {[%clk 0:00:09]}  Kc2 {[%clk 0:00:07]} 52. Rh1 {[%clk 0:00:05]}  Rxh1 {[%clk 0:00:07]} 0-1


[Site "https://www.chess.com"]

[Event "Titled Tuesday Blitz February 07 Early 2023"]
[White "Leenhouts, Koen"]
[Black "Babikov, Ivan"]
[WhiteFideId "1008439"]
[BlackFideId "4161106"]
[WhiteElo "2447"]
[BlackElo "2239"]
[Result "0-1"]
[Round "09"]
[TimeControl "180+2"]
[Date "2023.02.07"]
[WhiteClock "0:00:16"]
[BlackClock "0:00:06"]

1. e4 {[%clk 0:03:00]}  c6 {[%clk 0:02:59]} 2. d4 {[%clk 0:02:59]}  d5 {[%clk 0:02:59]} 3. e5 {[%clk 0:03:00]}  Bf5 {[%clk 0:02:59]} 4. Nc3 {[%clk 0:03:00]}  e6 {[%clk 0:02:57]} 5. g4 {[%clk 0:03:00]}  Bg6 {[%clk 0:02:54]} 6. Nge2 {[%clk 0:03:00]}  Nd7 {[%clk 0:02:51]} 7. h4 {[%clk 0:02:58]}  h6 {[%clk 0:02:46]} 8. f4 {[%clk 0:02:51]}  Ne7 {[%clk 0:02:41]} 9. Be3 {[%clk 0:02:44]}  c5 {[%clk 0:02:37]} 10. h5 {[%clk 0:02:31]}  Bh7 {[%clk 0:02:36]} 11. Qd2 {[%clk 0:02:19]}  Nc6 {[%clk 0:02:35]} 12. Bg2 {[%clk 0:02:14]}  Be7 {[%clk 0:02:24]} 13. O-O {[%clk 0:02:12]}  cxd4 {[%clk 0:02:20]} 14. Nxd4 {[%clk 0:02:09]}  Nxd4 {[%clk 0:02:18]} 15. Bxd4 {[%clk 0:02:08]}  Bc5 {[%clk 0:02:14]} 16. Ne2 {[%clk 0:02:07]}  Rc8 {[%clk 0:02:07]} 17. c3 {[%clk 0:02:07]}  Qh4 {[%clk 0:02:05]} 18. Bf3 {[%clk 0:01:56]}  Bxd4+ {[%clk 0:01:59]} 19. Nxd4 {[%clk 0:01:50]}  Qg3+ {[%clk 0:01:58]} 20. Kh1 {[%clk 0:01:50]}  Nc5 {[%clk 0:01:52]} 21. Rf2 {[%clk 0:01:15]}  Ne4 {[%clk 0:01:26]} 22. Rg2 {[%clk 0:01:12]}  Qh3+ {[%clk 0:01:12]} 23. Rh2 {[%clk 0:01:09]}  Qg3 {[%clk 0:01:04]} 24. Qe3 {[%clk 0:00:58]}  Nxc3 {[%clk 0:00:23]} 25. bxc3 {[%clk 0:00:39]}  Be4 {[%clk 0:00:24]} 26. Rc1 {[%clk 0:00:29]}  Rc4 {[%clk 0:00:22]} 27. Rg2 {[%clk 0:00:20]}  Qh3+ {[%clk 0:00:17]} 28. Rh2 {[%clk 0:00:20]}  Qg3 {[%clk 0:00:16]} 29. Rg2 {[%clk 0:00:20]}  Qh3+ {[%clk 0:00:16]} 30. Kg1 {[%clk 0:00:21]}  O-O {[%clk 0:00:13]} 31. Qe2 {[%clk 0:00:19]}  Rxd4 {[%clk 0:00:11]} 32. cxd4 {[%clk 0:00:17]}  Bxf3 {[%clk 0:00:10]} 33. Qf2 {[%clk 0:00:17]}  Bxg2 {[%clk 0:00:07]} 34. Rc7 {[%clk 0:00:16]}  Qh1# {[%clk 0:00:06]} 0-1


[Site "https://www.chess.com"]

[Event "Titled Tuesday Blitz February 07 Early 2023"]
[White "Omelja, Artem"]
[Black "Foerster-Yialamas, Lucas"]
[WhiteFideId "14119846"]
[BlackFideId "30901774"]
[WhiteElo "2446"]
[BlackElo "2151"]
[Result "0-1"]
[Round "09"]
[TimeControl "180+2"]
[Date "2023.02.07"]
[WhiteClock "0:00:01"]
[BlackClock "0:00:31"]

1. e4 {[%clk 0:03:00]}  c6 {[%clk 0:02:45]} 2. Ne2 {[%clk 0:03:00]}  d5 {[%clk 0:02:45]} 3. e5 {[%clk 0:03:00]}  d4 {[%clk 0:02:44]} 4. f4 {[%clk 0:02:54]}  f6 {[%clk 0:02:41]} 5. exf6 {[%clk 0:02:39]}  Nxf6 {[%clk 0:02:31]} 6. d3 {[%clk 0:02:21]}  c5 {[%clk 0:02:14]} 7. Nd2 {[%clk 0:02:17]}  b6 {[%clk 0:02:13]} 8. Nf3 {[%clk 0:02:12]}  Bb7 {[%clk 0:02:13]} 9. Ng3 {[%clk 0:02:08]}  e6 {[%clk 0:02:08]} 10. Be2 {[%clk 0:02:08]}  Bd6 {[%clk 0:02:07]} 11. O-O {[%clk 0:02:08]}  O-O {[%clk 0:02:06]} 12. Ng5 {[%clk 0:01:38]}  Qd7 {[%clk 0:02:02]} 13. Bf3 {[%clk 0:01:37]}  Nc6 {[%clk 0:01:59]} 14. N5e4 {[%clk 0:01:19]}  Rae8 {[%clk 0:01:49]} 15. Nxd6 {[%clk 0:01:16]}  Qxd6 {[%clk 0:01:50]} 16. Ne4 {[%clk 0:01:16]}  Nxe4 {[%clk 0:01:47]} 17. Bxe4 {[%clk 0:01:17]}  e5 {[%clk 0:01:47]} 18. Qh5 {[%clk 0:01:05]}  g6 {[%clk 0:01:46]} 19. Qg5 {[%clk 0:00:36]}  Kg7 {[%clk 0:01:39]} 20. Bd2 {[%clk 0:00:33]}  Na5 {[%clk 0:01:23]} 21. Bxb7 {[%clk 0:00:11]}  Nxb7 {[%clk 0:01:24]} 22. f5 {[%clk 0:00:09]}  Qf6 {[%clk 0:01:14]} 23. Qh6+ {[%clk 0:00:08]}  Kg8 {[%clk 0:01:12]} 24. Rae1 {[%clk 0:00:09]}  gxf5 {[%clk 0:01:08]} 25. Qh3 {[%clk 0:00:08]}  f4 {[%clk 0:01:06]} 26. Kh1 {[%clk 0:00:04]}  Kh8 {[%clk 0:01:06]} 27. g3 {[%clk 0:00:05]}  Nd6 {[%clk 0:01:00]} 28. gxf4 {[%clk 0:00:04]}  exf4 {[%clk 0:00:56]} 29. Rxe8 {[%clk 0:00:04]}  Rxe8 {[%clk 0:00:56]} 30. Bxf4 {[%clk 0:00:05]}  Nf5 {[%clk 0:00:48]} 31. Qg4 {[%clk 0:00:02]}  Ne3 {[%clk 0:00:45]} 32. Qf3 {[%clk 0:00:01]}  Nxf1 {[%clk 0:00:43]} 33. Qxf1 {[%clk 0:00:02]}  Rg8 {[%clk 0:00:33]} 34. Qf2 {[%clk 0:00:01]}  Qc6+ {[%clk 0:00:31]} 0-1


[Site "https://www.chess.com"]

[Event "Titled Tuesday Blitz February 07 Early 2023"]
[White "Borrmann, Laurenz"]
[Black "Jakubowska, Anna"]
[WhiteFideId "312187930"]
[BlackFideId "1121952"]
[WhiteElo "2304"]
[BlackElo "2139"]
[Result "1-0"]
[Round "09"]
[TimeControl "180+2"]
[Date "2023.02.07"]
[WhiteClock "0:00:05"]
[BlackClock "0:00:01"]

1. e4 {[%clk 0:03:00]}  Nf6 {[%clk 0:02:56]} 2. e5 {[%clk 0:03:00]}  Nd5 {[%clk 0:02:56]} 3. d4 {[%clk 0:03:00]}  d6 {[%clk 0:02:56]} 4. c4 {[%clk 0:03:00]}  Nb6 {[%clk 0:02:56]} 5. f4 {[%clk 0:03:01]}  dxe5 {[%clk 0:02:57]} 6. fxe5 {[%clk 0:03:02]}  Nc6 {[%clk 0:02:57]} 7. Be3 {[%clk 0:03:00]}  Bf5 {[%clk 0:02:57]} 8. Nc3 {[%clk 0:02:56]}  e6 {[%clk 0:02:57]} 9. Nf3 {[%clk 0:02:52]}  Bg4 {[%clk 0:02:55]} 10. Be2 {[%clk 0:02:46]}  Bxf3 {[%clk 0:02:53]} 11. gxf3 {[%clk 0:02:47]}  Be7 {[%clk 0:02:51]} 12. O-O {[%clk 0:02:42]}  f6 {[%clk 0:02:41]} 13. f4 {[%clk 0:02:24]}  O-O {[%clk 0:02:38]} 14. d5 {[%clk 0:01:44]}  Na5 {[%clk 0:02:14]} 15. b3 {[%clk 0:01:07]}  exd5 {[%clk 0:02:01]} 16. cxd5 {[%clk 0:01:08]}  fxe5 {[%clk 0:01:55]} 17. fxe5 {[%clk 0:01:04]}  Rxf1+ {[%clk 0:01:56]} 18. Bxf1 {[%clk 0:01:02]}  Bb4 {[%clk 0:01:54]} 19. Bxb6 {[%clk 0:00:36]}  axb6 {[%clk 0:01:32]} 20. Ne4 {[%clk 0:00:35]}  Qh4 {[%clk 0:01:19]} 21. Bg2 {[%clk 0:00:35]}  Rd8 {[%clk 0:01:18]} 22. Qe2 {[%clk 0:00:23]}  Kh8 {[%clk 0:00:56]} 23. Rd1 {[%clk 0:00:20]}  Bc5+ {[%clk 0:00:50]} 24. Nxc5 {[%clk 0:00:19]}  bxc5 {[%clk 0:00:50]} 25. d6 {[%clk 0:00:17]}  cxd6 {[%clk 0:00:48]} 26. exd6 {[%clk 0:00:18]}  Nc6 {[%clk 0:00:38]} 27. Bxc6 {[%clk 0:00:15]}  bxc6 {[%clk 0:00:38]} 28. d7 {[%clk 0:00:15]}  h6 {[%clk 0:00:31]} 29. Kh1 {[%clk 0:00:15]}  Kh7 {[%clk 0:00:23]} 30. Qd3+ {[%clk 0:00:14]}  Kg8 {[%clk 0:00:20]} 31. Qf5 {[%clk 0:00:12]}  Qe7 {[%clk 0:00:16]} 32. a4 {[%clk 0:00:10]}  Qe2 {[%clk 0:00:13]} 33. Qd3 {[%clk 0:00:10]}  Qxd3 {[%clk 0:00:13]} 34. Rxd3 {[%clk 0:00:11]}  Kf7 {[%clk 0:00:13]} 35. Rd6 {[%clk 0:00:10]}  Ke7 {[%clk 0:00:12]} 36. Rxc6 {[%clk 0:00:11]}  Rxd7 {[%clk 0:00:12]} 37. Rxc5 {[%clk 0:00:12]}  Rd2 {[%clk 0:00:11]} 38. Rb5 {[%clk 0:00:11]}  Ra2 {[%clk 0:00:11]} 39. a5 {[%clk 0:00:11]}  Kd6 {[%clk 0:00:12]} 40. b4 {[%clk 0:00:11]}  Kc6 {[%clk 0:00:12]} 41. Rb6+ {[%clk 0:00:11]}  Kd5 {[%clk 0:00:12]} 42. a6 {[%clk 0:00:10]}  g5 {[%clk 0:00:12]} 43. b5 {[%clk 0:00:10]}  h5 {[%clk 0:00:12]} 44. Rb7 {[%clk 0:00:10]}  h4 {[%clk 0:00:12]} 45. a7 {[%clk 0:00:09]}  h3 {[%clk 0:00:12]} 46. Kg1 {[%clk 0:00:08]}  g4 {[%clk 0:00:09]} 47. b6 {[%clk 0:00:08]}  g3 {[%clk 0:00:07]} 48. hxg3 {[%clk 0:00:08]}  Ke4 {[%clk 0:00:06]} 49. Rf7 {[%clk 0:00:06]}  h2+ {[%clk 0:00:02]} 50. Kh1 {[%clk 0:00:06]}  Ra1+ {[%clk 0:00:01]} 51. Kxh2 {[%clk 0:00:05]} 1-0


[Site "https://www.chess.com"]

[Event "Titled Tuesday Blitz February 07 Early 2023"]
[White "Andreev, Konstantin"]
[Black "Ingebretsen, Jens E"]
[WhiteFideId "24239305"]
[BlackFideId "1522965"]
[WhiteElo "2195"]
[BlackElo "2342"]
[Result "1-0"]
[Round "09"]
[TimeControl "180+2"]
[Date "2023.02.07"]
[WhiteClock "0:00:24"]
[BlackClock "0:00:17"]

1. e4 {[%clk 0:02:56]}  c5 {[%clk 0:03:00]} 2. Nf3 {[%clk 0:02:52]}  e6 {[%clk 0:03:00]} 3. d4 {[%clk 0:02:49]}  cxd4 {[%clk 0:03:01]} 4. Nxd4 {[%clk 0:02:49]}  Nf6 {[%clk 0:03:02]} 5. Nc3 {[%clk 0:02:49]}  Nc6 {[%clk 0:03:02]} 6. Ndb5 {[%clk 0:02:49]}  d6 {[%clk 0:03:02]} 7. Bf4 {[%clk 0:02:48]}  e5 {[%clk 0:03:03]} 8. Bg5 {[%clk 0:02:49]}  a6 {[%clk 0:03:03]} 9. Na3 {[%clk 0:02:49]}  b5 {[%clk 0:03:04]} 10. Nd5 {[%clk 0:02:50]}  Be7 {[%clk 0:03:03]} 11. Bxf6 {[%clk 0:02:50]}  Bxf6 {[%clk 0:03:04]} 12. c3 {[%clk 0:02:50]}  Rb8 {[%clk 0:03:04]} 13. Nc2 {[%clk 0:02:50]}  Bg5 {[%clk 0:03:05]} 14. a4 {[%clk 0:02:50]}  bxa4 {[%clk 0:03:05]} 15. Ncb4 {[%clk 0:02:47]}  Nxb4 {[%clk 0:03:05]} 16. cxb4 {[%clk 0:02:48]}  O-O {[%clk 0:02:55]} 17. Qxa4 {[%clk 0:02:47]}  Be6 {[%clk 0:02:49]} 18. Bxa6 {[%clk 0:02:45]}  Bxd5 {[%clk 0:02:46]} 19. exd5 {[%clk 0:02:46]}  Qb6 {[%clk 0:02:47]} 20. b5 {[%clk 0:02:37]}  f5 {[%clk 0:02:39]} 21. O-O {[%clk 0:02:30]}  f4 {[%clk 0:02:37]} 22. Rac1 {[%clk 0:02:25]}  f3 {[%clk 0:02:36]} 23. Rc6 {[%clk 0:02:24]}  fxg2 {[%clk 0:02:23]} 24. Kxg2 {[%clk 0:02:25]}  Qd8 {[%clk 0:02:19]} 25. Qg4 {[%clk 0:02:24]}  Bf4 {[%clk 0:02:15]} 26. Qe6+ {[%clk 0:02:24]}  Kh8 {[%clk 0:02:15]} 27. Rxd6 {[%clk 0:02:18]}  Qh4 {[%clk 0:02:09]} 28. Qh3 {[%clk 0:02:17]}  Qxh3+ {[%clk 0:01:52]} 29. Kxh3 {[%clk 0:02:18]}  Rf5 {[%clk 0:01:53]} 30. Rc6 {[%clk 0:02:05]}  Rh5+ {[%clk 0:01:47]} 31. Kg4 {[%clk 0:02:04]}  Rxh2 {[%clk 0:01:45]} 32. b6 {[%clk 0:02:01]}  Rf8 {[%clk 0:01:35]} 33. Rc8 {[%clk 0:01:56]}  Rxc8 {[%clk 0:01:23]} 34. Bxc8 {[%clk 0:01:57]}  h5+ {[%clk 0:01:22]} 35. Kf5 {[%clk 0:01:54]}  Rh3 {[%clk 0:01:05]} 36. b7 {[%clk 0:01:43]}  Rb3 {[%clk 0:01:05]} 37. d6 {[%clk 0:01:43]}  Kh7 {[%clk 0:01:01]} 38. d7 {[%clk 0:01:39]}  g6+ {[%clk 0:00:58]} 39. Kf6 {[%clk 0:01:27]}  Rb6+ {[%clk 0:00:50]} 40. Kf7 {[%clk 0:01:26]}  Bg5 {[%clk 0:00:50]} 41. Rg1 {[%clk 0:01:25]}  Bh4 {[%clk 0:00:35]} 42. Rxg6 {[%clk 0:00:45]}  Rxg6 {[%clk 0:00:35]} 43. d8=Q {[%clk 0:00:44]}  Bxd8 {[%clk 0:00:28]} 44. b8=Q {[%clk 0:00:41]}  Bc7 {[%clk 0:00:24]} 45. Qb3 {[%clk 0:00:38]}  Rg7+ {[%clk 0:00:20]} 46. Ke6 {[%clk 0:00:37]}  e4 {[%clk 0:00:20]} 47. Kd5 {[%clk 0:00:34]}  e3 {[%clk 0:00:19]} 48. Bf5+ {[%clk 0:00:34]}  Kh6 {[%clk 0:00:19]} 49. Qxe3+ {[%clk 0:00:34]}  Rg5 {[%clk 0:00:19]} 50. Qe6+ {[%clk 0:00:33]}  Kg7 {[%clk 0:00:20]} 51. Qe7+ {[%clk 0:00:31]}  Kh6 {[%clk 0:00:20]} 52. Qf6+ {[%clk 0:00:31]}  Rg6 {[%clk 0:00:20]} 53. Bxg6 {[%clk 0:00:29]}  h4 {[%clk 0:00:19]} 54. Bf5+ {[%clk 0:00:28]}  Kh5 {[%clk 0:00:19]} 55. f3 {[%clk 0:00:29]}  h3 {[%clk 0:00:19]} 56. Bxh3 {[%clk 0:00:27]}  Bd8 {[%clk 0:00:17]} 57. Qg7 {[%clk 0:00:24]} 1-0


[Site "https://www.chess.com"]